bitfinex-derivatives/quotes_BTCF0:USTF0_20251111
["timestamp","ask_amount","ask_price","bid_price","bid_amount"]
[1762823857505,0.00219803,106630.0,106620.0,1.0450153]
[1762823858202,0.0002344,106650.0,106640.0,0.05749]
[1762823858510,0.0002344,106650.0,106640.0,0.15202906]
[1762823858700,0.0002344,106650.0,106640.0,0.38646906]
[1762823858901,0.04453824,106670.0,106660.0,0.05182]
[1762823859210,0.04453824,106670.0,106660.0,0.41335266]
[1762823859211,0.00238627,106670.0,106660.0,0.41335266]
[1762823859412,0.06008627,106670.0,106660.0,0.40504266]
[1762823859610,0.51466627,106670.0,106660.0,0.12910643]
[1762823859813,0.04673627,106670.0,106660.0,0.14308643]
[1762823860000,0.00238627,106670.0,106660.0,0.50388643]
[1762823860310,0.51313627,106670.0,106660.0,0.00073266]
[1762823860508,0.1514888,106660.0,106650.0,0.08500487]
[1762823860711,0.05989803,106660.0,106650.0,0.2141113]
[1762823861007,0.00219803,106660.0,106650.0,0.04987376]
[1762823861314,0.02355803,106660.0,106650.0,0.5804013]
[1762823861605,0.15368683,106660.0,106650.0,0.08573753]
[1762823861827,0.15368683,106660.0,106650.0,0.13124753]
[1762823862008,0.05989803,106660.0,106650.0,0.04638376]
[1762823862312,0.15468683,106660.0,106650.0,0.13124753]
[1762823862511,0.06089803,106660.0,106650.0,0.13124753]
[1762823862912,0.06089803,106660.0,106650.0,0.14522753]
[1762823863303,0.06089803,106660.0,106650.0,0.23902513]
[1762823863504,0.06089803,106660.0,106650.0,0.59982513]
[1762823864108,0.04754803,106660.0,106650.0,0.6846889]
[1762823864309,0.15468683,106660.0,106650.0,0.5769113]
[1762823864514,0.15468683,106660.0,106650.0,0.00287376]
[1762823864714,0.15468683,106660.0,106650.0,0.11016753]
[1762823864917,0.51548683,106660.0,106650.0,0.13124753]
[1762823865313,0.42169803,106660.0,106650.0,0.13124753]
[1762823866220,0.51548683,106660.0,106650.0,0.13124753]
[1762823866918,0.51548683,106660.0,106650.0,0.11016753]
[1762823867110,0.51448683,106660.0,106650.0,0.04738376]
[1762823867316,0.51548683,106660.0,106650.0,0.36471376]
[1762823867518,0.51548683,106660.0,106650.0,0.40822376]
[1762823867712,0.42169803,106660.0,106650.0,0.60086513]
[1762823867912,0.51448683,106660.0,106650.0,0.49308753]
[1762823869018,0.1515064,106640.0,106630.0,0.03295573]
[1762823869326,0.1509552,106630.0,106620.0,0.07650573]
[1762823869521,0.15315323,106630.0,106620.0,0.00073266]
[1762823869708,0.959697,106630.0,106620.0,0.00073266]
[1762823869907,0.138204,106620.0,106610.0,0.36084]
[1762823870113,0.50120203,106620.0,106610.0,0.39452839]
[1762823870309,0.50120203,106620.0,106610.0,0.00073266]
[1762823870620,0.76829803,106620.0,106610.0,0.16199216]
[1762823870820,0.86212203,106620.0,106610.0,0.16199216]
[1762823871021,0.86212203,106620.0,106610.0,0.16499216]
[1762823871414,0.40737803,106620.0,106610.0,0.26382496]
[1762823871615,0.00219803,106620.0,106610.0,1.03512913]
[1762823871814,0.0224811,106630.0,106620.0,0.151074]
[1762823872020,0.04671913,106630.0,106620.0,0.17598628]
[1762823872421,0.04671913,106630.0,106620.0,0.26981028]
[1762823872621,0.04671913,106630.0,106620.0,0.63061028]
[1762823873010,0.04671913,106630.0,106620.0,0.68419445]
[1762823873417,0.02467913,106630.0,106620.0,0.6510546]
[1762823873611,0.00315862,106630.0,106620.0,0.6510546]
[1762823873818,0.00315862,106630.0,106620.0,0.73591837]
[1762823874225,0.09697382,106630.0,106620.0,0.6510546]
[1762823874726,0.11901382,106630.0,106620.0,0.5572306]
[1762823874925,0.11901382,106630.0,106620.0,0.22990516]
[1762823875724,0.09697382,106630.0,106620.0,0.68452916]
[1762823875924,0.11863382,106630.0,106620.0,0.32372916]
[1762823876126,0.11863382,106630.0,106620.0,0.22990516]
[1762823876521,0.11863382,106630.0,106620.0,0.11156683]
[1762823876720,0.11863382,106630.0,106620.0,0.22990516]
[1762823877028,0.11863382,106630.0,106620.0,0.07663683]
[1762823877228,0.11863382,106630.0,106620.0,0.05431683]
[1762823877418,0.47943382,106630.0,106620.0,0.08747161]
[1762823877620,0.84015382,106630.0,106620.0,0.08673895]
[1762823877820,0.95849215,106630.0,106620.0,0.004]
[1762823879224,0.1382928,106610.0,106600.0,0.08288296]
[1762823879428,0.14049753,106610.0,106600.0,0.05734266]
[1762823879630,0.14049083,106610.0,106600.0,0.41814266]
[1762823879930,0.14049083,106610.0,106600.0,0.05734266]
[1762823880528,0.14249083,106610.0,106600.0,0.17568099]
[1762823880735,0.00419803,106610.0,106600.0,0.99480259]
[1762823880922,0.002,106610.0,106600.0,0.99480259]
[1762823881117,0.13168833,106650.0,106640.0,0.05661]
[1762823881118,0.4990584,106650.0,106640.0,0.05661]
[1762823881319,0.40745803,106650.0,106640.0,0.05734266]
[1762823881518,0.50125563,106650.0,106640.0,0.17568099]
[1762823881723,0.50125563,106650.0,106640.0,0.05734266]
[1762823881923,0.50125563,106650.0,106640.0,0.00073266]
[1762823882123,0.50125563,106650.0,106640.0,0.05734266]
[1762823882320,0.86329563,106650.0,106640.0,0.05734266]
[1762823882935,0.86329563,106650.0,106640.0,0.05834266]
[1762823883230,0.00219803,106650.0,106640.0,0.27048739]
[1762823883435,0.00219803,106650.0,106640.0,0.63028739]
[1762823883637,0.00219803,106650.0,106640.0,0.99424739]
[1762823883826,0.04665803,106650.0,106640.0,0.99424739]
[1762823884026,0.04665803,106650.0,106640.0,0.42130266]
[1762823884227,0.04665803,106650.0,106640.0,0.51510906]
[1762823884424,0.49923274,106670.0,106660.0,0.05661]
[1762823884730,0.50142627,106670.0,106660.0,0.00073266]
[1762823884930,0.6197646,106670.0,106660.0,0.00073266]
[1762823885549,0.1382488,106660.0,106650.0,0.0436111]
[1762823885739,0.50124683,106660.0,106650.0,0.04434376]
[1762823886037,0.63242516,106660.0,106650.0,0.00087376]
[1762823886626,0.63242516,106660.0,106620.0,0.37394]
[1762823886627,0.04446,106630.0,106620.0,0.37394]
[1762823886834,0.04665803,106630.0,106620.0,0.99222499]
[1762823887036,0.14047323,106630.0,106620.0,0.89840099]
[1762823887435,0.14047323,106630.0,106620.0,0.41926266]
[1762823887624,0.94774556,106630.0,106620.0,0.00073266]
[1762823887827,0.46748723,106630.0,106620.0,0.06134266]
[1762823888140,0.45681323,106630.0,106620.0,0.06134266]
[1762823888335,0.00219803,106630.0,106620.0,0.27350499]
[1762823888541,0.00219803,106630.0,106620.0,1.06260943]
[1762823888745,0.00219803,106630.0,106620.0,1.06560943]
[1762823889234,0.00219803,106630.0,106620.0,0.97178543]
[1762823889440,0.00219803,106630.0,106620.0,1.06560943]
[1762823889933,0.0001411,106640.0,106630.0,0.1372852]
[1762823890133,0.00233913,106640.0,106630.0,0.61715619]
[1762823890338,0.4545897,106660.0,106650.0,0.04347]
[1762823890529,0.45678773,106660.0,106650.0,0.13800026]
[1762823890739,0.00219803,106660.0,106650.0,0.13800026]
[1762823891035,0.45678683,106660.0,106650.0,0.00073266]
[1762823891236,0.81898683,106660.0,106650.0,0.04420266]
[1762823891741,0.45678683,106660.0,106650.0,0.04420266]
[1762823892036,0.09698683,106660.0,106650.0,0.04420266]
[1762823892434,0.09698683,106660.0,106650.0,0.13800026]
[1762823892840,0.09698683,106660.0,106650.0,0.04420266]
[1762823893138,0.45778683,106660.0,106650.0,0.04520266]
[1762823893545,0.36399803,106660.0,106650.0,0.13900026]
[1762823893725,0.45778683,106660.0,106650.0,0.16354099]
[1762823893931,0.57612516,106660.0,106650.0,0.00173266]
[1762823894936,0.57512516,106660.0,106650.0,0.00173266]
[1762823895140,0.32940491,106670.0,106660.0,0.05661]
[1762823895333,0.42318491,106670.0,106660.0,0.05880803]
[1762823895533,0.54152324,106670.0,106660.0,0.00219803]
[1762823896236,0.42318491,106670.0,106660.0,0.05880803]
[1762823896431,0.42318491,106670.0,106660.0,0.05980803]
[1762823896636,0.54152324,106670.0,106660.0,0.01633803]
[1762823896837,0.42318491,106670.0,106660.0,0.03762803]
[1762823897041,0.42318491,106670.0,106660.0,0.05980803]
[1762823897240,0.42418491,106670.0,106660.0,0.05980803]
[1762823898046,0.54252324,106670.0,106660.0,0.05980803]
[1762823898543,0.42418491,106670.0,106660.0,0.05980803]
[1762823898843,0.54252324,106670.0,106660.0,0.05980803]
[1762823900539,0.54252324,106670.0,106660.0,0.03762803]
[1762823900942,0.42418491,106670.0,106660.0,0.05974803]
[1762823901239,0.33040491,106670.0,106660.0,0.15353683]
[1762823901446,0.42418491,106670.0,106660.0,0.15353683]
[1762823901640,0.33040491,106670.0,106660.0,0.05974803]
[1762823901939,0.09478,106670.0,106660.0,0.10944966]
[1762823902144,0.45558,106670.0,106660.0,0.10944966]
[1762823902546,0.09478,106670.0,106660.0,0.05974803]
[1762823902734,0.45558,106670.0,106660.0,0.03762803]
[1762823902939,0.57391833,106670.0,106660.0,0.00319803]
[1762823903139,0.57391833,106670.0,106660.0,0.001]
[1762823903344,0.59366632,106670.0,106660.0,0.001]
[1762823904032,0.38154799,106670.0,106660.0,0.06239803]
[1762823904238,0.11452799,106670.0,106660.0,0.06239803]
[1762823904438,0.001,106670.0,106660.0,0.51698683]
[1762823904638,0.09478,106670.0,106660.0,0.51698683]
[1762823904838,0.09478,106670.0,106660.0,0.42319803]
[1762823905039,0.09478,106670.0,106660.0,0.06239803]
[1762823905449,0.45558,106670.0,106660.0,0.06239803]
[1762823905747,0.09478,106670.0,106660.0,0.06239803]
[1762823906546,0.09478,106670.0,106660.0,0.15618683]
[1762823907049,0.09478,106670.0,106660.0,0.06239803]
[1762823908344,0.09478,106670.0,106660.0,0.15618683]
[1762823909144,0.09478,106670.0,106660.0,0.51698683]
[1762823909649,0.09478,106670.0,106660.0,0.42319803]
[1762823909848,0.09478,106670.0,106660.0,0.06239803]
[1762823910242,0.45558,106670.0,106660.0,0.06239803]
[1762823910443,0.45558,106670.0,106660.0,0.01714803]
[1762823910650,0.45558,106670.0,106660.0,0.06239803]
[1762823914360,0.001,106670.0,106660.0,0.27452516]
[1762823914550,0.00023429,106700.0,106690.0,0.04525]
[1762823914551,0.36103429,106700.0,106690.0,0.04525]
[1762823914748,0.09398789,106700.0,106690.0,0.16578636]
[1762823914951,0.09398789,106700.0,106690.0,0.04744803]
[1762823915156,0.45478789,106700.0,106690.0,0.04744803]
[1762823916141,0.36303429,106700.0,106690.0,0.04744803]
[1762823916342,0.3608,106710.0,106690.0,0.04744803]
[1762823916343,0.00020388,106730.0,106700.0,0.02395]
[1762823916652,0.4544979,106770.0,106740.0,0.0937185]
[1762823916851,0.14160394,106770.0,106760.0,0.12053636]
[1762823917052,0.04263,106770.0,106760.0,0.12970196]
[1762823917354,0.37651359,106800.0,106760.0,1.17500001]
[1762823917550,0.42813963,106800.0,106790.0,0.3608]
[1762823917854,0.1495334,106780.0,106770.0,0.3608]
[1762823918050,0.5141334,106780.0,106770.0,0.12053636]
[1762823918250,0.37651359,106800.0,106770.0,1.63329211]
[1762823918251,0.39754359,106800.0,106770.0,1.63329211]
[1762823918456,0.06661963,106800.0,106790.0,0.11833833]
[1762823918654,0.06661963,106800.0,106790.0,0.48133636]
[1762823918842,0.06661963,106800.0,106790.0,0.12053636]
[1762823919047,0.06961963,106800.0,106790.0,0.48133636]
[1762823919258,0.43541963,106800.0,106790.0,0.48133636]
[1762823919554,0.02171359,106800.0,106790.0,0.48133636]
[1762823919763,0.01871359,106800.0,106790.0,0.48133636]
[1762823920055,0.05834359,106800.0,106790.0,0.48233636]
[1762823920244,0.37402,106840.0,106820.0,0.0936467]
[1762823920446,0.37621803,106840.0,106830.0,0.11907099]
[1762823920648,0.05804803,106840.0,106830.0,0.47987099]
[1762823920847,0.06332407,106840.0,106830.0,0.11907099]
[1762823921054,0.05804803,106840.0,106830.0,0.11907099]
[1762823921254,0.00023396,106850.0,106840.0,0.0936308]
[1762823921459,0.00023396,106850.0,106840.0,0.84659099]
[1762823921756,0.01322,106880.0,106850.0,0.95229833]
[1762823921958,0.01541803,106880.0,106870.0,0.11907099]
[1762823922148,0.15164373,106880.0,106870.0,0.24390619]
[1762823922347,0.01322,106860.0,106840.0,0.47921503]
[1762823922549,0.78401,106860.0,106850.0,0.00073266]
[1762823922745,0.14152804,106850.0,106840.0,7.67e-05]
[1762823922950,0.41090407,106850.0,106840.0,0.00080936]
[1762823923150,0.02322803,106850.0,106840.0,0.11914769]
[1762823923348,0.00219803,106850.0,106840.0,0.11914769]
[1762823923752,0.00219803,106850.0,106840.0,0.47994769]
[1762823923948,0.003,106860.0,106840.0,1.77613709]
[1762823924148,0.37402,106880.0,106850.0,0.71309833]
[1762823924355,0.00219803,106870.0,106860.0,0.3608]
[1762823924549,0.00219803,106870.0,106860.0,0.36153266]
[1762823924954,0.00219803,106870.0,106860.0,0.59549266]
[1762823925264,0.00219803,106870.0,106860.0,1.4250418]
[1762823925447,0.00219803,106870.0,106860.0,1.77734013]
[1762823925654,0.01322,106880.0,106860.0,1.63699333]
[1762823925849,0.01541803,106880.0,106870.0,0.47913833]
[1762823926051,0.05804803,106880.0,106870.0,0.11907099]
[1762823926249,0.05804803,106880.0,106870.0,0.47987099]
[1762823926464,0.01541803,106880.0,106870.0,0.47987099]
[1762823926759,0.36996,106890.0,106870.0,0.47987099]
[1762823926760,0.37425385,106900.0,106870.0,1.07987099]
[1762823926961,0.0002508,106920.0,106890.0,0.47913833]
[1762823927163,0.0002508,106920.0,106910.0,0.36153266]
[1762823927359,0.36103374,106950.0,106910.0,0.47987099]
[1762823927667,0.14387231,106950.0,106940.0,0.3608]
[1762823927860,0.04263,106930.0,106920.0,0.11833833]
[1762823928158,0.40562803,106930.0,106920.0,0.00073266]
[1762823928358,0.05010407,106930.0,106920.0,0.45507365]
[1762823928665,0.42962407,106930.0,106920.0,0.00073266]
[1762823928866,0.80934407,106930.0,106920.0,0.00073266]
[1762823929053,0.1494107,106920.0,106910.0,0.00014043]
[1762823929258,0.44284407,106920.0,106910.0,0.11921142]
[1762823929459,0.46184407,106920.0,106910.0,0.48001142]
[1762823929662,0.02069407,106920.0,106910.0,0.48001142]
[1762823929961,0.04257407,106920.0,106910.0,0.36167309]
[1762823930160,0.15736477,106920.0,106910.0,0.48001142]
[1762823930558,0.02069407,106920.0,106910.0,0.48001142]
[1762823930758,0.02169407,106920.0,106910.0,0.48001142]
[1762823930959,0.00319803,106920.0,106910.0,0.80742082]
[1762823931265,0.00319803,106920.0,106910.0,1.09333142]
[1762823931456,0.00319803,106920.0,106910.0,1.28043306]
[1762823931758,0.001,106920.0,106910.0,1.28043306]
[1762823931961,0.001,106920.0,106910.0,1.16209473]
[1762823932151,0.01322,106940.0,106910.0,1.55302366]
[1762823932358,0.00219803,106940.0,106930.0,0.93349023]
[1762823932662,0.01616803,106940.0,106930.0,1.54830289]
[1762823932966,0.00219803,106940.0,106930.0,1.64183513]
[1762823933159,0.00219803,106940.0,106930.0,1.40803513]
[1762823933358,0.00023374,106950.0,106940.0,0.0935432]
[1762823933558,0.00243177,106950.0,106940.0,0.57341419]
[1762823933754,0.00243177,106950.0,106940.0,0.71363099]
[1762823933966,0.00243177,106950.0,106940.0,0.80717419]
[1762823934165,0.00243177,106950.0,106940.0,1.40717419]
[1762823934558,0.00023374,106950.0,106940.0,0.57341419]
[1762823934762,0.00243177,106950.0,106940.0,0.90068019]
[1762823934961,0.36584192,106970.0,106940.0,1.40713699]
[1762823935161,0.00548363,107000.0,106970.0,0.093517]
[1762823935367,0.0257277,107000.0,106990.0,0.47987099]
[1762823935666,0.1192184,107000.0,106990.0,0.47987099]
[1762823935863,0.0481177,107000.0,106990.0,0.47987099]
[1762823936066,0.1374295,106990.0,106980.0,0.00014043]
[1762823936264,0.0567,106960.0,106950.0,0.3608]
[1762823936466,0.17114373,106960.0,106950.0,0.00073266]
[1762823936666,0.01277,106940.0,106930.0,0.3608]
[1762823936883,0.01496803,106940.0,106930.0,0.44574835]
[1762823937667,0.4671008,106960.0,106930.0,0.53930025]
[1762823937867,0.01510624,106960.0,106950.0,0.44501569]
[1762823938165,0.17136399,106960.0,106950.0,0.44574835]
[1762823938569,0.07783829,106960.0,106950.0,0.44574835]
[1762823938868,0.17136399,106960.0,106950.0,0.44574835]
[1762823939070,0.15264399,106960.0,106950.0,0.44674835]
[1762823939378,0.01518829,106960.0,106950.0,0.7179958]
[1762823939577,0.01518829,106960.0,106950.0,0.6244613]
[1762823940066,0.01518829,106960.0,106950.0,0.44674835]
[1762823940464,0.03757829,106960.0,106950.0,0.36253266]
[1762823940758,0.00022026,106960.0,106950.0,0.62449854]
[1762823940962,0.01825363,107000.0,106950.0,1.92626405]
[1762823940963,0.37905363,107000.0,106950.0,1.92626405]
[1762823941258,0.37385209,107040.0,107000.0,0.093488]
[1762823941459,0.46951082,107040.0,107030.0,0.00073266]
[1762823941663,0.59765651,107040.0,107030.0,0.00073266]
[1762823941866,0.61637651,107040.0,107030.0,0.00073266]
[1762823942061,0.1373945,107030.0,107020.0,0.00014043]
[1762823942264,0.15831253,107030.0,107020.0,0.00087309]
[1762823942462,0.02239,107010.0,106990.0,0.8274385]
[1762823942670,0.02091803,107010.0,107000.0,0.44501569]
[1762823942868,0.01305209,107040.0,107010.0,0.0934766]
[1762823943167,0.01305209,107040.0,107030.0,0.53921285]
[1762823943168,0.00248012,107040.0,107030.0,0.53921285]
[1762823943478,0.00248012,107040.0,107030.0,0.82794835]
[1762823943770,0.00248012,107040.0,107030.0,0.38293266]
[1762823943771,0.15858592,107040.0,107030.0,0.38293266]
[1762823943970,0.06513012,107040.0,107030.0,0.82794835]
[1762823944171,0.15858592,107040.0,107030.0,0.36153266]
[1762823944367,0.1373945,107030.0,107020.0,0.00014043]
[1762823944672,0.15831253,107030.0,107020.0,0.00087309]
[1762823945262,0.51911253,107030.0,107020.0,0.00014043]
[1762823945475,0.60332822,107030.0,107020.0,0.00014043]
[1762823945776,0.02091803,107030.0,107020.0,0.44588878]
[1762823946073,0.00219803,107030.0,107020.0,0.44588878]
[1762823946664,0.00219803,107030.0,107020.0,0.53936208]
[1762823946868,0.00028209,107040.0,107030.0,0.0934646]
[1762823947074,0.02120012,107040.0,107030.0,0.82742835]
[1762823947274,0.02120012,107040.0,107030.0,0.74321266]
[1762823947275,0.13704602,107040.0,107030.0,0.74321266]
[1762823947579,0.04359012,107040.0,107030.0,0.82742835]
[1762823947873,0.00248012,107040.0,107030.0,1.01432033]
[1762823948074,0.00248012,107040.0,107030.0,1.15441573]
[1762823948376,0.15858602,107040.0,107030.0,0.82742835]
[1762823948575,0.51938602,107040.0,107030.0,0.00073266]
[1762823948773,0.06513012,107040.0,107030.0,0.00073266]
[1762823949077,0.00037395,107050.0,107030.0,1.24756033]
[1762823949274,0.01277,107080.0,107040.0,0.76279138]
[1762823949465,0.01277,107080.0,107060.0,0.4542384]
[1762823949466,0.01872,107070.0,107060.0,0.4542384]
[1762823949665,0.02091803,107070.0,107060.0,0.81577106]
[1762823949976,0.00219803,107070.0,107060.0,1.14271844]
[1762823950172,0.00219803,107070.0,107060.0,0.81577106]
[1762823950372,0.01277,107080.0,107060.0,0.81573386]
[1762823950568,0.36133115,107100.0,107080.0,0.093416]
[1762823950774,0.45693268,107100.0,107090.0,0.46998835]
[1762823950972,0.45693268,107100.0,107090.0,0.38597266]
[1762823950973,0.48842268,107100.0,107090.0,0.38597266]
[1762823951169,0.53235268,107100.0,107090.0,0.00073266]
[1762823951372,0.48842268,107100.0,107090.0,0.17834955]
[1762823951576,0.48842268,107100.0,107090.0,0.56406955]
[1762823951775,0.47565268,107100.0,107090.0,0.38645266]
[1762823952077,0.10890268,107100.0,107090.0,0.70566835]
[1762823952272,0.10890268,107100.0,107090.0,0.79904339]
[1762823952467,0.12762268,107100.0,107090.0,0.4812277]
[1762823952670,0.12762268,107100.0,107090.0,0.17832339]
[1762823952872,0.03421918,107100.0,107090.0,1.15964339]
[1762823953076,0.4541756,107140.0,107090.0,1.36340404]
[1762823953275,0.4541756,107140.0,107130.0,0.16843138]
[1762823953276,0.3608,107140.0,107130.0,0.16843138]
[1762823953474,0.3608,107140.0,107130.0,0.17062941]
[1762823953681,0.45439331,107150.0,107130.0,0.00219803]
[1762823953870,0.36103331,107150.0,107140.0,0.08421569]
[1762823954067,0.36103331,107150.0,107140.0,0.08641372]
[1762823954273,0.36103331,107150.0,107140.0,0.00219803]
[1762823954468,0.00031337,107160.0,107150.0,0.0933599]
[1762823954671,0.37357,107190.0,107160.0,0.093344]
[1762823954884,0.37357,107190.0,107180.0,0.00219803]
[1762823954885,0.80598,107190.0,107180.0,0.00219803]
[1762823955074,0.39596,107190.0,107180.0,0.00219803]
[1762823955279,0.01277,107190.0,107180.0,0.17062941]
[1762823955488,0.04393,107180.0,107170.0,0.00014043]
[1762823955782,0.79341,107180.0,107170.0,0.08655415]
[1762823955981,0.3660332,107200.0,107170.0,1.00404984]
[1762823956180,0.01309901,107220.0,107210.0,0.0933077]
[1762823956181,0.00032901,107220.0,107210.0,0.0933077]
[1762823956483,0.3608,107230.0,107210.0,0.08641372]
[1762823956484,0.33789901,107230.0,107210.0,0.08641372]
[1762823956672,0.33789901,107230.0,107220.0,0.41067469]
[1762823956876,0.01300309,107250.0,107220.0,0.85788801]
[1762823957074,0.0052332,107240.0,107220.0,0.44721372]
[1762823957278,0.0052332,107230.0,107220.0,0.00219803]
[1762823957473,0.0052332,107240.0,107220.0,0.44735415]
[1762823957673,0.0276232,107240.0,107220.0,0.09559594]
[1762823957870,0.01300309,107250.0,107230.0,0.0932895]
[1762823958081,0.01300309,107250.0,107240.0,0.44721372]
[1762823958579,0.01823629,107250.0,107240.0,0.36299803]
[1762823958780,0.00023309,107250.0,107240.0,0.54049532]
[1762823959081,0.34580309,107280.0,107240.0,0.54049532]
[1762823959280,0.02189,107260.0,107250.0,0.3608]
[1762823959486,0.02189,107230.0,107220.0,0.44501569]
[1762823959684,0.0405532,107250.0,107220.0,0.72379803]
[1762823959881,0.0494332,107240.0,107220.0,0.54044512]
[1762823960078,0.0494332,107240.0,107230.0,0.08421569]
[1762823960079,0.8036332,107240.0,107230.0,0.08421569]
[1762823960277,0.05763,107220.0,107210.0,0.36094043]
[1762823960482,0.05763,107220.0,107210.0,0.00233846]
[1762823960483,0.8169832,107220.0,107210.0,0.00233846]
[1762823960885,0.0052332,107220.0,107210.0,0.54066185]
[1762823961080,0.37423,107250.0,107210.0,0.62487754]
[1762823961291,0.37423,107280.0,107240.0,0.7216]
[1762823961579,0.00020936,107270.0,107250.0,0.17982705]
[1762823961780,0.00020936,107260.0,107250.0,0.36313846]
[1762823962084,0.0442,107260.0,107250.0,0.36313846]
[1762823962289,0.04440936,107260.0,107250.0,0.44735415]
[1762823962479,0.43824936,107260.0,107250.0,0.36313846]
[1762823962790,0.0442,107230.0,107220.0,0.44480633]
[1762823963103,0.43501,107230.0,107220.0,0.36278867]
[1762823963575,0.43513,107230.0,107220.0,0.36278867]
[1762823963779,0.5284203,107230.0,107220.0,0.36278867]
[1762823963980,0.4951803,107230.0,107220.0,0.00219803]
[1762823964178,0.150929,107220.0,107210.0,0.00014043]
[1762823964479,0.511729,107220.0,107210.0,0.00014043]
[1762823964685,0.905769,107220.0,107210.0,0.00233846]
[1762823965284,0.511729,107220.0,107210.0,0.00014043]
[1762823965485,0.9054488,107220.0,107210.0,0.00233846]
[1762823965686,0.45135,107220.0,107210.0,0.44735415]
[1762823965883,0.45135,107220.0,107210.0,0.36313846]
[1762823966189,0.45135,107220.0,107210.0,0.00233846]
[1762823966384,0.05763,107220.0,107210.0,0.44735415]
[1762823966586,0.45131,107220.0,107210.0,0.44735415]
[1762823966789,0.05763,107220.0,107210.0,0.44735415]
[1762823966987,0.01343,107220.0,107210.0,0.54066165]
[1762823967178,0.00014043,107240.0,107220.0,0.0932935]
[1762823967490,0.39352,107270.0,107240.0,0.0932814]
[1762823967685,0.39356,107270.0,107260.0,0.44721372]
[1762823967886,0.43776,107270.0,107260.0,0.00219803]
[1762823968382,0.5310153,107270.0,107260.0,0.36299803]
[1762823968587,0.01343,107250.0,107240.0,0.44501569]
[1762823968889,0.45091,107250.0,107240.0,0.36299803]
[1762823969190,0.5441827,107250.0,107240.0,0.36299803]
[1762823969387,0.1374814,107240.0,107230.0,0.36094043]
[1762823969594,0.0442,107240.0,107230.0,0.44735415]
[1762823969884,0.4372,107240.0,107230.0,0.44735415]
[1762823970090,0.1374814,107240.0,107230.0,0.36313846]
[1762823970293,0.4372,107240.0,107230.0,0.44735415]
[1762823970492,0.0442,107240.0,107230.0,0.44735415]
[1762823970991,0.1374814,107240.0,107230.0,0.44735415]
[1762823971287,0.0442,107240.0,107230.0,0.44735415]
[1762823971483,0.4372,107240.0,107230.0,0.44735415]
[1762823971878,0.5302814,107240.0,107230.0,0.00233846]
[1762823972086,0.5302814,107240.0,107230.0,0.00014043]
[1762823972295,0.8910814,107240.0,107230.0,0.00014043]
[1762823972487,0.0442,107240.0,107230.0,0.44735415]
[1762823972690,0.4675073,107250.0,107230.0,0.44735415]
[1762823972691,0.01343,107250.0,107230.0,0.44735415]
[1762823972893,0.01343,107250.0,107240.0,0.44501569]
[1762823973091,0.45059,107250.0,107240.0,0.44721372]
[1762823973390,0.42828,107250.0,107240.0,0.44721372]
[1762823973891,0.01343,107250.0,107240.0,0.62471081]
[1762823974092,0.37423,107280.0,107240.0,0.62471081]
[1762823974397,0.5301753,107270.0,107260.0,0.08421569]
[1762823974602,0.5301753,107270.0,107260.0,0.00219803]
[1762823974890,0.37423,107280.0,107260.0,0.62468891]
[1762823974891,0.01343,107280.0,107260.0,0.62468891]
[1762823975094,0.01343,107280.0,107270.0,0.52923138]
[1762823975284,0.01343,107280.0,107270.0,0.44721372]
[1762823975589,0.01343,107280.0,107270.0,0.62468471]
[1762823975791,0.39302465,107290.0,107270.0,0.62468471]
[1762823975993,0.00034465,107290.0,107280.0,0.52923138]
[1762823976193,0.13778255,107290.0,107280.0,0.3608]
[1762823976496,0.00034465,107290.0,107280.0,0.3608]
[1762823976694,0.00034465,107290.0,107280.0,0.45624463]
[1762823976897,0.00034465,107290.0,107280.0,0.36299803]
[1762823977192,0.00034465,107290.0,107280.0,0.7824943]
[1762823977496,0.00023298,107300.0,107290.0,0.0932379]
[1762823977699,0.00023298,107300.0,107290.0,0.68021372]
[1762823978185,0.00023298,107300.0,107290.0,0.77342339]
[1762823978685,0.13766228,107300.0,107290.0,0.44721372]
[1762823978885,0.13766228,107300.0,107290.0,0.08641372]
[1762823979692,0.53046228,107300.0,107290.0,0.08641372]
[1762823980192,0.05763,107280.0,107270.0,0.75404192]
[1762823980392,0.5435566,107280.0,107270.0,0.08665564]
[1762823981695,0.45015,107280.0,107270.0,0.08665564]
[1762823981894,0.45015,107280.0,107270.0,0.17087133]
[1762823982100,0.05763,107280.0,107270.0,0.53167133]
[1762823982391,0.05763,107280.0,107270.0,0.44745564]
[1762823982392,0.03532,107280.0,107270.0,0.44745564]
[1762823982597,0.01343,107280.0,107270.0,0.44745564]
[1762823983084,0.01343,107280.0,107270.0,0.53167133]
[1762823983284,0.01343,107280.0,107270.0,0.44745564]
[1762823983285,0.00103233,107280.0,107270.0,0.44745564]
[1762823984085,0.00023298,107300.0,107270.0,0.85792969]
[1762823984290,0.00023298,107300.0,107290.0,0.98326928]
[1762823984490,0.37423,107340.0,107300.0,0.0932279]
[1762823984692,0.5116245,107340.0,107330.0,0.08421569]
[1762823984991,0.1374093,107330.0,107310.0,0.75281977]
[1762823985186,0.4982093,107330.0,107320.0,0.08641372]
[1762823985990,0.405,107330.0,107320.0,0.08641372]
[1762823986189,0.0442,107330.0,107320.0,0.44721372]
[1762823986695,0.01343,107340.0,107320.0,0.54041932]
[1762823986887,0.00059316,107350.0,107330.0,0.44501569]
[1762823987085,0.13797896,107350.0,107340.0,0.44721372]
[1762823987289,0.04479316,107350.0,107340.0,0.44721372]
[1762823987497,0.04479316,107350.0,107340.0,0.53142941]
[1762823987691,0.13797896,107350.0,107330.0,0.36093977]
[1762823987895,0.8459545,107340.0,107330.0,0.00013977]
[1762823988097,0.53821019,107340.0,107330.0,0.00013977]
[1762823988299,0.0932212,107310.0,107300.0,0.04468]
[1762823988499,0.0932212,107310.0,107300.0,0.13109372]
[1762823988697,0.4540166,107320.0,107310.0,0.01301]
[1762823988892,0.4540166,107320.0,107310.0,0.09942372]
[1762823989302,0.0932251,107310.0,107290.0,0.3608]
[1762823989496,0.3608,107310.0,107300.0,0.13067372]
[1762823989699,0.36093757,107320.0,107310.0,0.05711]
[1762823989889,0.00013757,107320.0,107310.0,0.58853941]
[1762823990089,0.45458296,107350.0,107340.0,0.03571]
[1762823990400,0.36139316,107350.0,107340.0,0.05930803]
[1762823990601,0.36139316,107350.0,107340.0,0.14352372]
[1762823990805,0.45457896,107350.0,107340.0,0.05930803]
[1762823991210,0.45457896,107350.0,107340.0,0.01504803]
[1762823991601,0.0931945,107340.0,107330.0,0.47655546]
[1762823991905,0.3608,107340.0,107330.0,0.52301349]
[1762823992107,0.4539945,107340.0,107330.0,0.0023378]
[1762823992709,0.3608,107340.0,107330.0,0.13081349]
[1762823992906,0.3608,107340.0,107330.0,0.0023378]
[1762823993110,0.3608,107340.0,107330.0,0.0251978]
[1762823993304,0.00059316,107350.0,107340.0,0.05711]
[1762823993506,0.00059316,107350.0,107340.0,0.14352372]
[1762823994008,0.36139316,107350.0,107340.0,0.00219803]
[1762823994403,0.36139316,107350.0,107340.0,0.14352372]